fUST/lending_fUST_20240902
["ID","MTS","AMOUNT","RATE_DAILY","PERIOD"]
[336939628,1725253842530,-649.37,0.00024657,2]
[336939629,1725253842542,-500.0,0.00024657,2]
[336939630,1725253842552,-500.0,0.00024657,2]
[336939631,1725253842564,-500.0,0.00024657,2]
[336939632,1725253842574,-500.0,0.00024657,2]
[336939633,1725253842584,-500.0,0.00024657,2]
[336939634,1725253842594,-159.62148588,0.00024657,2]
[336939635,1725253842603,-1275.03,0.00024657,2]
[336939636,1725253842613,-4025.24,0.00024657,2]
[336939637,1725253842623,-500.0,0.00024657,2]
[336939638,1725253842634,-1079.61,0.00024657,2]
[336939639,1725253842643,-500.0,0.00024657,2]
[336939640,1725253842653,-597.58,0.00024657,2]
[336939641,1725253842663,-500.0,0.00024657,2]
[336939642,1725253842673,-500.0,0.00024657,2]
[336939643,1725253842683,-1199.46,0.00024657,2]
[336939644,1725253842693,-6684.19,0.00024657,2]
[336939645,1725253842703,-500.0,0.00024657,2]
[336939646,1725253842712,-1434.04,0.00024657,2]
[336939647,1725253842722,-500.0,0.00024657,2]
[336939648,1725253842732,-500.0,0.00024657,2]
[336939649,1725253842742,-507.10310783,0.00024657,2]
[336939650,1725253842752,-500.0,0.00024657,2]
[336939651,1725253842762,-500.0,0.00024657,2]
[336939652,1725253842771,-2798.14,0.00024657,2]
[336939653,1725253842781,-500.0,0.00024657,2]
[336939654,1725253842791,-602.43,0.00024657,2]
[336939655,1725253842801,-1079.59,0.00024657,2]
[336939656,1725253842811,-501.75457791,0.00024657,2]
[336939657,1725253842821,-500.0,0.00024657,2]
[336939658,1725253842830,-417.25845058,0.00024657,2]
[336939659,1725253842840,-500.0,0.00024657,2]
[336939660,1725253842850,-2344.19,0.00024657,2]
[336939661,1725253842860,-500.0,0.00024657,2]
[336939662,1725253842870,-1046.78,0.00024657,2]
[336939663,1725253842880,-503.22517086,0.00024657,2]
[336939664,1725253842889,-1625.11,0.00024657,2]
[336939665,1725253842901,-500.0,0.00024657,2]
[336939666,1725253842911,-500.0,0.00024657,2]
[336939667,1725253842921,-1003.03,0.00024657,2]
[336939670,1725253843107,-500.0,0.00024657,2]
[336939671,1725253843118,-500.0,0.00024657,2]
[336939672,1725253843127,-500.0,0.00024657,2]
[336939673,1725253843138,-500.0,0.00024657,2]
[336939674,1725253843148,-500.0,0.00024657,2]
[336939675,1725253843158,-933.38,0.00024657,2]
[336939676,1725253843167,-500.0,0.00024657,2]
[336939677,1725253843177,-500.0,0.00024657,2]
[336939678,1725253843187,-500.0,0.00024657,2]
[336939679,1725253843196,-500.0,0.00024657,2]
[336939680,1725253843206,-500.0,0.00024657,2]
[336939681,1725253843216,-500.0,0.00024657,2]
[336939682,1725253843225,-500.0,0.00024657,2]
[336939683,1725253843235,-500.0,0.00024657,2]
[336939684,1725253843244,-500.0,0.00024657,2]
[336939685,1725253843254,-500.0,0.00024657,2]
[336939686,1725253843263,-500.0,0.00024657,2]
[336939687,1725253843273,-500.0,0.00024657,2]
[336939688,1725253843283,-500.0,0.00024657,2]
[336939689,1725253843292,-500.0,0.00024657,2]
[336939690,1725253843301,-500.0,0.00024657,2]
[336939691,1725253843310,-500.0,0.00024657,2]
[336939692,1725253843320,-502.93525691,0.00024657,2]
[336939693,1725253843330,-500.0,0.00024657,2]
[336939694,1725253843339,-1031.18,0.00024657,2]
[336939695,1725253843350,-1031.18,0.00024657,2]
[336939696,1725253843361,-1209.2,0.00024657,2]
[336939697,1725253843371,-1031.18,0.00024657,2]
[336939698,1725253843381,-1031.18,0.00024657,2]
[336939699,1725253843391,-1031.18,0.00024657,2]
[336939700,1725253843400,-500.0,0.00024657,2]
[336939701,1725253843410,-1031.18,0.00024657,2]
[336939702,1725253843419,-1031.18,0.00024657,2]
[336939703,1725253843429,-500.0,0.00024658,2]
[336939704,1725253843438,-500.0,0.00024658,2]
[336939705,1725253843448,-602.98389427,0.00024658,2]
[336939706,1725253843458,-500.0,0.00024658,2]
[336939707,1725253843467,-650.0,0.00024658,2]
[336939708,1725253843477,-500.0,0.00024658,2]
[336939709,1725253843486,-500.0,0.00024658,2]
[336939710,1725253843495,-500.0,0.00024658,2]
[336939711,1725253843505,-300.0,0.00024658,2]
[336939712,1725253843515,-500.0,0.00024658,2]
[336939713,1725253843525,-500.0,0.00024658,2]
[336939714,1725253843535,-500.0,0.00024658,2]
[336939715,1725253843545,-500.0,0.00024658,2]
[336939716,1725253843557,-500.0,0.00024658,2]
[336939717,1725253843568,-500.0,0.00024658,2]
[336939718,1725253843578,-500.0,0.00024658,2]
[336939719,1725253843588,-500.0,0.00024658,2]
[336939720,1725253843598,-500.0,0.00024658,2]
[336939721,1725253843608,-500.0,0.00024658,2]
[336939722,1725253843617,-500.0,0.00024658,2]
[336939723,1725253843628,-500.0,0.00024658,2]
[336939724,1725253843637,-500.0,0.00024658,2]
[336939725,1725253843646,-500.0,0.00024658,2]
[336939726,1725253843655,-500.0,0.00024658,2]
[336939727,1725253843665,-641.8550484,0.00024658,2]
[336939728,1725253843675,-500.0,0.00024658,2]
[336939729,1725253843684,-500.0,0.00024658,2]
[336939730,1725253843693,-500.0,0.00024658,2]
[336939731,1725253843703,-500.0,0.00024658,2]
[336939732,1725253843712,-500.0,0.00024658,2]
[336939733,1725253843723,-500.0,0.00024658,2]
[336939734,1725253843732,-500.0,0.00024658,2]
[336939735,1725253843741,-500.0,0.00024658,2]
[336939736,1725253843751,-500.0,0.00024658,2]
[336939737,1725253843761,-500.0,0.00024658,2]
[336939738,1725253843770,-300.0,0.00024658,2]
[336939739,1725253843779,-500.0,0.00024673,2]
[336939740,1725253843788,-500.0,0.00024673,2]
[336939741,1725253843797,-160.0,0.00024675,3]
[336939742,1725253843807,-187.020562,0.0002475,2]
[336939743,1725253843816,-311.23837711,0.00024831,2]
[336939744,1725253843826,-2000.0,0.00024831,2]
[336939745,1725253843835,-153.0,0.0002489,2]
[336939746,1725253843844,-420.2655615,0.0002489,2]
[336939747,1725253843854,-409.6979826,0.0002489,2]
[336939748,1725253843863,-409.6979826,0.0002489,2]
[336939749,1725253843873,-409.6979826,0.0002489,2]
[336939750,1725253843889,-417.810114,0.0002489,2]
[336939751,1725253843901,-409.6979826,0.0002489,2]
[336939752,1725253843911,-409.6979826,0.0002489,2]
[336939753,1725253843922,-409.6979826,0.0002489,2]
[336939754,1725253843932,-819.3959652,0.0002489,2]
[336939755,1725253843943,-153.0,0.00024891,2]
[336939756,1725253843953,-153.0,0.00024891,2]
[336939757,1725253843962,-153.0,0.00024891,2]
[336939758,1725253843971,-204.2598202,0.00024921,3]
[336939759,1725253843983,-500.0,0.0002493,2]
[336939760,1725253843992,-500.0,0.0002493,2]
[336939761,1725253844002,-500.0,0.0002493,2]
[336939762,1725253844011,-500.0,0.0002493,2]
[336939763,1725253844021,-500.0,0.0002493,2]
[336939764,1725253844030,-1031.18,0.0002493,2]
[336939765,1725253844040,-1031.18,0.0002493,2]
[336939766,1725253844049,-1031.18,0.0002493,2]
[336939767,1725253844059,-1031.18,0.0002493,2]
[336939768,1725253844068,-500.0,0.00024931,2]
[336939769,1725253844078,-500.0,0.00024931,2]
[336939770,1725253844088,-500.0,0.00024931,2]
[336939771,1725253844098,-500.0,0.00024931,2]
[336939772,1725253844108,-500.0,0.00024931,2]
[336939773,1725253844118,-500.0,0.00024931,2]
[336939774,1725253844128,-496.03349054,0.00024931,2]
[336939775,1725253844137,-545.01343121,0.00024931,2]
[336939776,1725253844148,-500.0,0.00024931,2]
[336939777,1725253844157,-500.0,0.00024931,2]
[336939778,1725253844166,-500.0,0.00024931,2]
[336939779,1725253844176,-500.0,0.00024931,2]
[336939780,1725253844186,-500.0,0.00024931,2]
[336939781,1725253844196,-500.0,0.00024931,2]
[336939782,1725253844205,-575.71,0.00024931,2]
[336939783,1725253844215,-500.0,0.00024931,2]
[336939784,1725253844225,-500.0,0.00024931,2]
[336939785,1725253844234,-509.71311402,0.00024931,2]
[336939786,1725253844244,-500.0,0.00024931,2]
[336939787,1725253844254,-500.0,0.00024931,2]
[336939788,1725253844264,-500.0,0.00024931,2]
[336939789,1725253844274,-500.0,0.00024931,2]
[336939790,1725253844283,-500.0,0.00024931,2]
[336939791,1725253844293,-500.0,0.00024931,2]
[336939792,1725253844303,-500.0,0.00024931,2]
[336939793,1725253844312,-502.94461312,0.00024931,2]
[336939794,1725253844323,-500.0,0.00024931,2]
[336939795,1725253844334,-500.0,0.00024931,2]
[336939796,1725253844344,-500.0,0.00024931,2]
[336939797,1725253844353,-550.49,0.00024931,2]
[336939798,1725253844363,-534.1,0.00024931,2]
[336939799,1725253844372,-500.0,0.00024931,2]
[336939800,1725253844384,-500.0,0.00024931,2]
[336939801,1725253844396,-520.13,0.00024931,2]
[336939802,1725253844406,-500.0,0.00024931,2]
[336939803,1725253844415,-490.90114801,0.00024931,2]
[336939804,1725253844426,-502.8123865,0.00024931,2]
[336939805,1725253844436,-500.0,0.00024931,2]
[336939806,1725253844448,-500.0,0.00024931,2]
[336939807,1725253844459,-678.34,0.00024931,2]
[336939808,1725253844469,-500.0,0.00024931,2]
[336939809,1725253844479,-525.38,0.00024931,2]
[336939810,1725253844489,-500.0,0.00024931,2]
[336939811,1725253844498,-500.0,0.00024931,2]
[336939812,1725253844508,-500.0,0.00024931,2]
[336939813,1725253844517,-500.0,0.00024931,2]
[336939814,1725253844527,-500.0,0.00024931,2]
[336939815,1725253844537,-500.0,0.00024931,2]
[336939816,1725253844546,-500.0,0.00024931,2]
[336939817,1725253844556,-500.0,0.00024931,2]
[336939818,1725253844566,-501.68855469,0.00024931,2]
[336939819,1725253844575,-500.0,0.00024931,2]
[336939820,1725253844585,-500.0,0.00024931,2]
[336939821,1725253844595,-500.0,0.00024931,2]
[336939822,1725253844604,-500.0,0.00024931,2]
[336939823,1725253844613,-500.0,0.00024931,2]
[336939824,1725253844622,-500.0,0.00024931,2]
[336939825,1725253844633,-500.0,0.00024931,2]
[336939826,1725253844642,-615.17,0.00024931,2]
[336939827,1725253844652,-500.0,0.00024931,2]
[336939828,1725253844662,-500.0,0.00024931,2]
[336939829,1725253844671,-500.0,0.00024931,2]
[336939830,1725253844680,-500.0,0.00024931,2]
[336939831,1725253844689,-500.0,0.00024931,2]
[336939832,1725253844699,-504.67124278,0.00024931,2]
[336939833,1725253844708,-500.0,0.00024931,2]
[336939834,1725253844718,-500.0,0.00024931,2]
[336939835,1725253844728,-2861.46,0.00024931,2]
[336939836,1725253844737,-500.0,0.00024931,2]
[336939837,1725253844747,-500.0,0.00024931,2]
[336939838,1725253844757,-500.0,0.00024931,2]
[336939839,1725253844766,-500.0,0.00024931,2]
[336939840,1725253844776,-500.0,0.00024931,2]
[336939841,1725253844787,-500.0,0.00024931,2]
[336939842,1725253844797,-500.0,0.00024931,2]
[336939843,1725253844808,-500.0,0.00024931,2]
[336939844,1725253844818,-500.0,0.00024931,2]
[336939845,1725253844828,-500.0,0.00024931,2]
[336939846,1725253844838,-500.0,0.00024931,2]
[336939847,1725253844847,-508.89,0.00024931,2]
[336939848,1725253844857,-500.0,0.00024931,2]
[336939849,1725253844866,-500.0,0.00024931,2]
[336939850,1725253844876,-500.0,0.00024931,2]
[336939851,1725253844886,-500.0,0.00024931,2]
[336939852,1725253844898,-500.0,0.00024931,2]
[336939853,1725253844913,-948.65,0.00024931,2]
[336939854,1725253844923,-500.0,0.00024931,2]
[336939855,1725253844933,-505.74595886,0.00024931,2]
[336939856,1725253844943,-688.48,0.00024931,2]
[336939857,1725253844953,-500.0,0.00024931,2]
[336939858,1725253844962,-500.0,0.00024931,2]
[336939859,1725253844972,-500.0,0.00024931,2]
[336939860,1725253844982,-500.0,0.00024931,2]
[336939861,1725253844992,-500.0,0.00024931,2]
[336939862,1725253845001,-500.0,0.00024931,2]
[336939863,1725253845011,-508.84601125,0.00024931,2]
[336939864,1725253845021,-359.93565185,0.00024931,2]
[336939865,1725253845031,-500.0,0.00024931,2]
[336939866,1725253845040,-500.0,0.00024931,2]
[336939867,1725253845050,-500.0,0.00024931,2]
[336939868,1725253845059,-500.0,0.00024931,2]
[336939869,1725253845069,-500.0,0.00024931,2]
[336939870,1725253845079,-500.0,0.00024931,2]
[336939871,1725253845088,-551.42,0.00024931,2]
[336939872,1725253845098,-500.0,0.00024931,2]
[336939873,1725253845107,-500.0,0.00024931,2]
[336939874,1725253845117,-500.0,0.00024931,2]
[336939875,1725253845128,-808.25,0.00024931,2]
[336939876,1725253845137,-500.0,0.00024931,2]
[336939877,1725253845146,-500.0,0.00024931,2]
[336939878,1725253845157,-500.0,0.00024931,2]
[336939879,1725253845166,-500.0,0.00024931,2]
[336939880,1725253845176,-500.0,0.00024931,2]
[336939881,1725253845186,-500.0,0.00024931,2]
[336939882,1725253845196,-500.0,0.00024931,2]
[336939884,1725253845205,-500.0,0.00024931,2]
[336939885,1725253845215,-500.0,0.00024931,2]
[336939886,1725253845224,-500.0,0.00024931,2]
[336939887,1725253845234,-501.71763306,0.00024931,2]
[336939888,1725253845243,-502.33354262,0.00024931,2]
[336939889,1725253845252,-500.0,0.00024931,2]
[336939890,1725253845262,-500.0,0.00024931,2]
[336939891,1725253845271,-500.0,0.00024931,2]
[336939892,1725253845281,-500.0,0.00024931,2]
[336939893,1725253845290,-500.0,0.00024931,2]
[336939894,1725253845300,-460.69700446,0.00024931,2]
[336939895,1725253845309,-500.0,0.00024931,2]
[336939897,1725253845318,-500.0,0.00024931,2]
[336939899,1725253845328,-500.0,0.00024931,2]
[336939901,1725253845338,-500.0,0.00024931,2]
[336939903,1725253845347,-500.0,0.00024931,2]
[336939904,1725253845357,-500.0,0.00024931,2]
[336939905,1725253845366,-500.0,0.00024931,2]
[336939907,1725253845375,-500.0,0.00024931,2]
[336939909,1725253845386,-500.0,0.00024931,2]
[336939911,1725253845396,-501.90515221,0.00024931,2]
[336939913,1725253845406,-500.0,0.00024931,2]
[336939916,1725253845417,-500.0,0.00024931,2]
[336939918,1725253845427,-503.63168444,0.00024931,2]
[336939920,1725253845436,-357.49324299,0.00024931,2]
[336939922,1725253845447,-500.0,0.00024931,2]
[336939924,1725253845456,-500.0,0.00024931,2]
[336939926,1725253845467,-825.8,0.00024931,2]
[336939928,1725253845478,-500.0,0.00024931,2]
[336939930,1725253845488,-726.75,0.00024931,2]
[336939932,1725253845498,-500.0,0.00024931,2]
[336939934,1725253845507,-500.0,0.00024931,2]
[336939936,1725253845518,-500.0,0.00024931,2]
[336939938,1725253845528,-500.0,0.00024931,2]
[336939940,1725253845538,-500.0,0.00024931,2]
[336939942,1725253845548,-161.60604739,0.00024931,2]
[336939944,1725253845558,-717.61,0.00024931,2]
[336939946,1725253845568,-500.0,0.00024931,2]
[336939947,1725253845577,-500.0,0.00024931,2]
[336939948,1725253845586,-566.57,0.00024931,2]
[336939949,1725253845595,-500.0,0.00024931,2]
[336939950,1725253845604,-685.95,0.00024931,2]
[336939951,1725253845614,-500.0,0.00024931,2]
[336939952,1725253845623,-500.0,0.00024931,2]
[336939953,1725253845634,-500.0,0.00024931,2]
[336939954,1725253845643,-395.17663262,0.00024931,2]
[336939955,1725253845652,-164.92745214,0.00024931,2]
[336939956,1725253845834,-340.14283178,0.00024931,2]
[336939957,1725253845844,-500.0,0.00024931,2]
[336939958,1725253845853,-218.91139632,0.00024931,2]
[336939959,1725253845870,-1031.18,0.0002493,2]
[336939960,1725253845880,-281.08860368,0.00024931,2]
[336939961,1725253845891,-529.3908934,0.00024931,2]
[336939962,1725253845905,-500.0,0.00024931,2]
[336939963,1725253845915,-500.0,0.00024931,2]
[336939964,1725253845927,-500.0,0.00024931,2]
[336939965,1725253845937,-500.0,0.00024931,2]
[336939966,1725253845947,-500.0,0.00024931,2]
[336939967,1725253845956,-500.0,0.00024931,2]
[336939968,1725253845965,-500.0,0.00024931,2]
[336939969,1725253845976,-500.0,0.00024931,2]
[336939970,1725253845985,-500.0,0.00024931,2]
[336939971,1725253845994,-500.0,0.00024931,2]
[336939972,1725253846003,-480.31688723,0.00024931,2]
[336939973,1725253846114,-0.82338603,0.00024931,2]
[336939974,1725253846129,-500.0,0.00024931,2]
[336939975,1725253846140,-585.46,0.00024931,2]
[336939976,1725253846151,-53.4058283,0.00024931,2]
[336939977,1725253846163,-446.5941717,0.00024931,2]
[336939978,1725253846172,-151.0,0.00024931,7]
[336939979,1725253846182,-896.52,0.00024931,2]
[336939980,1725253846191,-500.0,0.00024931,2]
[336939981,1725253846200,-500.0,0.00024931,2]
[336939982,1725253846209,-500.0,0.00024931,2]
[336939983,1725253846220,-1342.75,0.00024931,2]
[336939984,1725253846363,-1080.2,0.00024931,2]
[336939985,1725253846373,-500.0,0.00024931,2]
[336939986,1725253846383,-500.0,0.00024931,2]
[336939987,1725253846392,-500.0,0.00024931,2]
[336939988,1725253846402,-1889.15,0.00024931,2]
[336939989,1725253846411,-500.0,0.00024931,2]
[336939990,1725253846420,-500.0,0.00024931,2]
[336939991,1725253846429,-500.0,0.00024931,2]
[336939992,1725253846439,-500.0,0.00024931,2]
[336939993,1725253846447,-1390.53,0.00024931,2]
[336939994,1725253846456,-500.0,0.00024931,2]
[336939995,1725253846466,-500.0,0.00024931,2]
[336939996,1725253846475,-500.0,0.00024931,2]
[336939997,1725253846485,-500.0,0.00024931,2]
[336939998,1725253846494,-500.0,0.00024931,2]
[336939999,1725253846503,-500.0,0.00024931,2]
[336940000,1725253846512,-505.12970038,0.00024931,2]
[336940001,1725253846521,-1008.8,0.00024931,2]
[336940002,1725253846530,-500.0,0.00024931,2]
[336940003,1725253846540,-714.88,0.00024931,2]
[336940004,1725253846549,-500.0,0.00024931,2]
[336940005,1725253846559,-500.0,0.00024931,2]
[336940006,1725253846569,-400.87981163,0.00024931,2]
[336940007,1725253846578,-500.0,0.00024931,2]
[336940008,1725253846587,-500.0,0.00024931,2]
[336940009,1725253846596,-1450.33,0.00024931,2]
[336940010,1725253846606,-500.0,0.00024931,2]
[336940011,1725253846616,-2013.82,0.00024931,2]
[336940012,1725253846626,-500.0,0.00024931,2]
[336940013,1725253846635,-500.0,0.00024931,2]
[336940014,1725253846645,-500.0,0.00024931,2]
[336940015,1725253846658,-500.0,0.00024931,2]
[336940016,1725253846667,-1088.29,0.00024931,2]
[336940017,1725253846677,-596.18,0.00024931,2]
[336940018,1725253846687,-500.0,0.00024931,2]
[336940019,1725253846696,-500.0,0.00024931,2]
[336940020,1725253846705,-500.0,0.00024931,2]
[336940021,1725253846715,-1613.9,0.00024931,2]
[336940022,1725253846724,-500.0,0.00024931,2]
[336940023,1725253846733,-9177.61,0.00024931,2]
[336940024,1725253846741,-500.0,0.00024931,2]
[336940025,1725253846751,-500.0,0.00024931,2]
[336940026,1725253846760,-994.14,0.00024931,2]
[336940027,1725253846769,-500.0,0.00024931,2]
[336940028,1725253846778,-1116.28,0.00024931,2]
[336940029,1725253846788,-1276.75,0.00024931,2]
[336940030,1725253846797,-305.72984482,0.00024931,2]
[336940031,1725253846806,-762.95,0.00024931,2]
[336940032,1725253846816,-500.0,0.00024931,2]
[336940033,1725253846826,-1249.31,0.00024931,2]
[336940034,1725253846835,-2147.82,0.00024931,2]
[336940035,1725253846845,-1001.58,0.00024931,2]
[336940036,1725253846854,-814.15,0.00024931,2]
[336940037,1725253846863,-1982.93,0.00024931,2]
[336940038,1725253846872,-502.42464154,0.00024931,2]
[336940039,1725253846881,-500.0,0.00024931,2]
[336940040,1725253846890,-500.0,0.00024931,2]
[336940041,1725253846901,-151.0,0.00024931,7]
[336940042,1725253846916,-1146.01,0.00024931,2]
[336940043,1725253846925,-500.0,0.00024931,2]
[336940044,1725253846935,-500.0,0.00024931,2]
[336940045,1725253846944,-711.23,0.00024931,2]
[336940046,1725253846954,-1431.84,0.00024931,2]
[336940047,1725253846964,-992.83,0.00024931,2]
[336940048,1725253846973,-500.0,0.00024931,2]
[336940049,1725253846982,-500.0,0.00024931,2]
[336940050,1725253846991,-500.0,0.00024931,2]
[336940051,1725253847000,-500.0,0.00024931,2]
[336940052,1725253847010,-773.76,0.00024931,2]
[336940053,1725253847019,-500.0,0.00024931,2]
[336940054,1725253847029,-501.80702055,0.00024931,2]
[336940055,1725253847038,-500.0,0.00024931,2]
[336940056,1725253847047,-500.0,0.00024931,2]
[336940057,1725253847057,-1253.18,0.00024931,2]
[336940058,1725253847066,-3734.39,0.00024931,2]
[336940059,1725253847076,-767.5,0.00024931,2]
[336940060,1725253847085,-1698.05,0.00024931,2]
[336940061,1725253847094,-859.7,0.00024931,2]
[336940062,1725253847103,-500.0,0.00024931,2]
[336940063,1725253847113,-1206.09,0.00024931,2]
[336940064,1725253847122,-575.79,0.00024931,2]
[336940065,1725253847136,-1412.55,0.00024931,2]
[336940066,1725253847146,-559.34218101,0.00024931,2]
[336940067,1725253847155,-500.0,0.00024931,2]
[336940068,1725253847164,-1206.52,0.00024931,2]
[336940069,1725253847174,-515.3,0.00024931,2]
[336940070,1725253847183,-500.0,0.00024931,2]
[336940071,1725253847193,-500.0,0.00024931,2]
[336940072,1725253847203,-502.81969004,0.00024931,2]
[336940073,1725253847212,-1033.35,0.00024931,2]
[336940074,1725253847222,-985.07,0.00024931,2]
[336940075,1725253847231,-151.0,0.00024931,7]
[336940076,1725253847240,-500.0,0.00024931,2]
[336940077,1725253847250,-721.38,0.00024931,2]
[336940078,1725253847259,-847.48,0.00024931,2]
[336940079,1725253847269,-500.0,0.00024931,2]
[336940080,1725253847278,-1150.78,0.00024931,2]
[336940081,1725253847287,-500.0,0.00024931,2]
[336940082,1725253847297,-1052.29,0.00024931,2]
[336940083,1725253847307,-500.0,0.00024931,2]
[336940084,1725253847316,-1010.37,0.00024931,2]
[336940085,1725253847326,-500.0,0.00024931,2]
[336940086,1725253847335,-500.0,0.00024931,2]
[336940087,1725253847346,-500.0,0.00024931,2]
[336940088,1725253847355,-597.21,0.00024931,2]
[336940089,1725253847364,-500.0,0.00024931,2]
[336940090,1725253847374,-500.0,0.00024931,2]
[336940091,1725253847386,-649.37,0.00024931,2]
[336940092,1725253847396,-500.0,0.00024931,2]
[336940093,1725253847406,-509.6084453,0.00024931,2]
[336940094,1725253847416,-504.28990011,0.00024931,2]
[336940095,1725253847425,-1275.03,0.00024931,2]
[336940096,1725253847435,-4025.24,0.00024931,2]
[336940097,1725253847444,-1079.61,0.00024931,2]
[336940098,1725253847454,-500.0,0.00024931,2]
[336940099,1725253847463,-597.58,0.00024931,2]
[336940100,1725253847471,-1199.46,0.00024931,2]
[336940101,1725253847480,-6684.19,0.00024931,2]
[336940102,1725253847489,-505.35678504,0.00024931,2]
[336940103,1725253847498,-1434.04,0.00024931,2]
[336940104,1725253847507,-500.0,0.00024931,2]
[336940105,1725253847516,-500.0,0.00024931,2]
[336940106,1725253847525,-500.0,0.00024931,2]
[336940107,1725253847535,-2798.14,0.00024931,2]
[336940108,1725253847544,-500.0,0.00024931,2]
[336940109,1725253847553,-602.43,0.00024931,2]
[336940110,1725253847563,-1079.59,0.00024931,2]
[336940111,1725253847572,-500.0,0.00024931,2]
[336940112,1725253847581,-2344.19,0.00024931,2]
[336940113,1725253847590,-500.0,0.00024931,2]
[336940114,1725253847599,-1046.78,0.00024931,2]
[336940115,1725253847608,-1625.11,0.00024931,2]
[336940116,1725253847618,-500.0,0.00024931,2]
[336940117,1725253847627,-1003.03,0.00024931,2]
[336940118,1725253847641,-500.0,0.00024931,2]
[336940119,1725253847651,-933.38,0.00024931,2]
[336940120,1725253847660,-500.0,0.00024931,2]
[336940121,1725253847669,-500.0,0.00024931,2]
[336940122,1725253847678,-500.0,0.00024931,2]
[336940123,1725253847687,-500.0,0.00024931,2]
[336940124,1725253847696,-500.0,0.00024931,2]
[336940125,1725253847706,-500.0,0.00024931,2]
[336940126,1725253847715,-500.0,0.00024931,2]
[336940127,1725253847725,-1209.2,0.00024931,2]
[336940128,1725253847735,-500.0,0.00024931,2]
[336940129,1725253847744,-795.977006,0.00024964,2]
[336940130,1725253847753,-195.111376,0.00024964,2]
[336940131,1725253847762,-192.374311,0.00024964,2]
[336940132,1725253847771,-195.640221,0.00024964,2]
[336940133,1725253847780,-280.244579,0.00024964,2]
[336940134,1725253847789,-420.366868,0.00024964,2]
[336940135,1725253847798,-500.0,0.00024973,2]
[336940136,1725253847807,-159.0,0.00025,2]
[336940137,1725253847816,-236.61144708,0.00025,2]
[336940138,1725253847826,-160.0,0.00025,2]
[336940139,1725253847835,-1412.88818904,0.00025009,2]
[336940140,1725253847844,-311.23837711,0.00025105,2]
[336940141,1725253847854,-1031.18,0.00025108,2]
[336940142,1725253847863,-1031.18,0.00025108,2]
[336940143,1725253847872,-1031.18,0.00025108,2]
[336940144,1725253847882,-94848.29216674,0.00025109,2]
[336940145,1725253847891,-151.0,0.00025109,7]
[336940146,1725253847905,-151.0,0.00025109,7]
[336940147,1725253847914,-451.8415669,0.00025195,2]
[336940148,1725253847926,-204.2598202,0.00025195,3]
[336940149,1725253847937,-3000.0,0.000252,2]
[336940150,1725253847948,-237.76076199,0.00025204,2]
[336940151,1725253847958,-4211.82170408,0.00025204,2]
[336940152,1725253847968,-500.0,0.00025204,2]
[336940153,1725253847978,-500.0,0.00025204,2]
[336940154,1725253847988,-500.0,0.00025204,2]
[336940155,1725253847997,-260.55049564,0.00025204,2]